fUSD/lending_fUSD_20241106
["ID","MTS","AMOUNT","RATE_DAILY","PERIOD"]
[341400390,1730863855370,-500.0,0.00037999,14]
[341400391,1730863855379,-500.0,0.00037999,14]
[341400392,1730863855389,-569.31,0.00037999,14]
[341400393,1730863855399,-500.0,0.00037999,14]
[341400394,1730863855408,-500.0,0.00037999,14]
[341400395,1730863855417,-500.0,0.00037999,14]
[341400396,1730863855427,-500.0,0.00037999,14]
[341400397,1730863855438,-500.0,0.00037999,14]
[341400398,1730863855448,-500.0,0.00037999,14]
[341400399,1730863855458,-500.0,0.00037999,14]
[341400400,1730863855467,-500.0,0.00037999,14]
[341400401,1730863855477,-501.57002432,0.00037999,14]
[341400402,1730863855487,-500.0,0.00037999,14]
[341400403,1730863855497,-500.0,0.00037999,14]
[341400404,1730863855506,-500.0,0.00037999,14]
[341400405,1730863855516,-500.0,0.00037999,14]
[341400406,1730863855525,-500.0,0.00037999,14]
[341400407,1730863855536,-500.0,0.00037999,14]
[341400408,1730863855545,-500.0,0.00037999,14]
[341400409,1730863855555,-500.0,0.00037999,14]
[341400410,1730863855564,-500.0,0.00037999,14]
[341400411,1730863855573,-500.0,0.00037999,14]
[341400412,1730863855582,-500.0,0.00037999,14]
[341400413,1730863855591,-500.0,0.00037999,14]
[341400414,1730863855600,-500.0,0.00037999,14]
[341400415,1730863855610,-544.89273013,0.00037999,14]
[341400416,1730863855620,-500.0,0.00037999,14]
[341400417,1730863855630,-500.0,0.00037999,14]
[341400418,1730863855640,-270.94562644,0.00037999,14]
[341400419,1730863855650,-500.0,0.00037999,14]
[341400420,1730863855660,-500.0,0.00037999,14]
[341400421,1730863855670,-502.82027481,0.00037999,14]
[341400422,1730863855680,-500.0,0.00037999,14]
[341400423,1730863855833,-150.0,0.00037999,7]
[341400424,1730863855843,-500.0,0.00037999,14]
[341400425,1730863855852,-500.0,0.00037999,14]
[341400426,1730863855862,-500.0,0.00037999,14]
[341400427,1730863855871,-500.0,0.00037999,14]
[341400428,1730863855880,-500.0,0.00037999,14]
[341400429,1730863855889,-500.0,0.00037999,14]
[341400430,1730863855898,-284.6607489,0.00037999,30]
[341400431,1730863855907,-500.0,0.00037999,14]
[341400432,1730863855917,-500.0,0.00037999,14]
[341400433,1730863855926,-900.0,0.00038,39]
[341400434,1730863855935,-178.5539,0.00038,2]
[341400435,1730863855943,-12154.1649,0.00038,2]
[341400436,1730863855952,-245000.0,0.00038,2]
[341400437,1730863855961,-5923.502,0.00038,2]
[341400438,1730863855970,-1440.8602,0.00038,2]
[341400439,1730863855980,-1166.9265,0.00038,2]
[341400440,1730863855989,-8961.028,0.00038,10]
[341400441,1730863855998,-400.31735983,0.00038,120]
[341400442,1730863856007,-1915.65407836,0.00038,120]
[341400443,1730863856017,-2058.64124451,0.00038061,2]
[341400444,1730863856026,-876.70622094,0.0003809,2]
[341400445,1730863856035,-500.0,0.00038098,14]
[341400446,1730863856044,-500.0,0.00038098,14]
[341400447,1730863856054,-500.0,0.00038098,14]
[341400448,1730863856063,-500.0,0.00038098,14]
[341400449,1730863856073,-193.15057636,0.00038098,14]
[341400450,1730863856082,-500.0,0.00038098,14]
[341400451,1730863856091,-500.0,0.00038098,14]
[341400452,1730863856100,-500.0,0.00038098,14]
[341400453,1730863856109,-500.0,0.00038098,14]
[341400454,1730863856120,-500.0,0.00038098,14]
[341400455,1730863856130,-500.0,0.00038098,14]
[341400456,1730863856140,-500.0,0.00038098,14]
[341400457,1730863856149,-500.0,0.00038098,14]
[341400458,1730863856158,-500.0,0.00038098,14]
[341400459,1730863856169,-154.27024395,0.00038098,14]
[341400460,1730863856178,-500.0,0.00038098,14]
[341400461,1730863856188,-500.0,0.00038098,14]
[341400462,1730863856198,-326.82,0.00038098,14]
[341400463,1730863856208,-500.0,0.00038098,14]
[341400464,1730863856217,-516.1129297,0.00038098,14]
[341400465,1730863856228,-500.0,0.00038098,14]
[341400466,1730863856237,-500.0,0.00038098,14]
[341400467,1730863856248,-500.0,0.00038098,14]
[341400468,1730863856257,-500.0,0.00038098,14]
[341400469,1730863856267,-500.0,0.00038098,14]
[341400470,1730863856276,-525.48707035,0.00038098,14]
[341400471,1730863856286,-500.0,0.00038098,14]
[341400472,1730863856294,-500.0,0.00038098,14]
[341400473,1730863856303,-500.0,0.00038098,14]
[341400474,1730863856313,-500.0,0.00038098,14]
[341400475,1730863856322,-594.86822591,0.00038098,14]
[341400476,1730863856331,-500.0,0.00038098,14]
[341400477,1730863856341,-500.0,0.00038098,14]
[341400478,1730863856350,-1000.0,0.00038098,14]
[341400479,1730863856359,-500.0,0.00038098,14]
[341400480,1730863856368,-500.0,0.00038098,14]
[341400481,1730863856377,-496.31271584,0.00038098,14]
[341400482,1730863856386,-500.0,0.00038098,14]
[341400483,1730863856395,-500.0,0.00038098,14]
[341400484,1730863856404,-500.0,0.00038098,14]
[341400485,1730863856413,-500.0,0.00038098,14]
[341400486,1730863856422,-500.0,0.00038098,14]
[341400487,1730863856431,-957.59,0.00038098,14]
[341400488,1730863856441,-500.0,0.00038098,14]
[341400489,1730863856451,-500.0,0.00038098,14]
[341400490,1730863856460,-500.0,0.00038098,14]
[341400491,1730863856470,-500.0,0.00038098,14]
[341400492,1730863856479,-500.0,0.00038098,14]
[341400493,1730863856488,-500.0,0.00038098,14]
[341400494,1730863856498,-502.628698,0.00038098,14]
[341400495,1730863856507,-500.0,0.00038098,14]
[341400496,1730863856516,-1476.18,0.00038098,14]
[341400497,1730863856527,-500.0,0.00038098,14]
[341400498,1730863856536,-338.57710815,0.00038098,14]
[341400499,1730863856545,-500.0,0.00038098,14]
[341400500,1730863856556,-500.0,0.00038098,14]
[341400501,1730863856566,-500.0,0.00038098,14]
[341400502,1730863856576,-500.0,0.00038098,14]
[341400503,1730863856586,-500.0,0.00038098,14]
[341400504,1730863856596,-500.0,0.00038098,14]
[341400505,1730863856605,-500.0,0.00038098,14]
[341400506,1730863856615,-4012.81,0.00038099,14]
[341400507,1730863856624,-538.22,0.00038099,14]
[341400508,1730863856633,-500.0,0.00038099,14]
[341400509,1730863856643,-500.0,0.00038099,14]
[341400510,1730863856652,-500.0,0.00038099,14]
[341400511,1730863856661,-853.97,0.00038099,14]
[341400512,1730863856671,-1396.02,0.00038099,14]
[341400513,1730863856680,-728.78,0.00038099,14]
[341400514,1730863856689,-500.0,0.00038099,14]
[341400515,1730863856698,-968.43,0.00038099,14]
[341400516,1730863856707,-500.0,0.00038099,14]
[341400517,1730863856716,-668.27,0.00038099,14]
[341400518,1730863856726,-500.0,0.00038099,14]
[341400519,1730863856736,-500.0,0.00038099,14]
[341400520,1730863856746,-598.06,0.00038099,14]
[341400521,1730863856758,-544.9,0.00038099,14]
[341400522,1730863856767,-574.61,0.00038099,14]
[341400523,1730863856776,-500.0,0.00038099,14]
[341400524,1730863856786,-500.0,0.00038099,14]
[341400525,1730863856797,-500.0,0.00038099,14]
[341400526,1730863856807,-500.0,0.00038099,14]
[341400527,1730863856816,-500.0,0.00038099,14]
[341400528,1730863856827,-501.54284622,0.00038099,14]
[341400529,1730863856837,-1409.73,0.00038099,14]
[341400530,1730863856847,-500.0,0.00038099,14]
[341400531,1730863856857,-500.0,0.00038099,14]
[341400532,1730863856867,-500.0,0.00038099,14]
[341400533,1730863856876,-596.78,0.00038099,14]
[341400534,1730863856885,-879.44,0.00038099,14]
[341400535,1730863856895,-500.0,0.00038099,14]
[341400536,1730863856906,-900.72,0.00038099,14]
[341400537,1730863856916,-500.0,0.00038099,14]
[341400538,1730863856927,-500.0,0.00038099,14]
[341400539,1730863856938,-500.0,0.00038099,14]
[341400540,1730863856948,-500.0,0.00038099,14]
[341400541,1730863856960,-518.21,0.00038099,14]
[341400542,1730863856969,-500.0,0.00038099,14]
[341400543,1730863856978,-520.47260512,0.00038099,14]
[341400544,1730863856988,-3670.73,0.00038099,14]
[341400545,1730863856998,-500.0,0.00038099,14]
[341400546,1730863857008,-513.22,0.00038099,14]
[341400547,1730863857018,-500.0,0.00038099,14]
[341400548,1730863857028,-500.0,0.00038099,14]
[341400549,1730863857038,-1042.95,0.00038099,14]
[341400550,1730863857049,-500.0,0.00038099,14]
[341400551,1730863857060,-500.0,0.00038099,14]
[341400552,1730863857069,-500.0,0.00038099,14]
[341400553,1730863857079,-500.0,0.00038099,14]
[341400554,1730863857089,-500.0,0.00038099,14]
[341400555,1730863857100,-500.0,0.00038099,14]
[341400556,1730863857111,-500.0,0.00038099,14]
[341400557,1730863857124,-500.0,0.00038099,14]
[341400558,1730863857135,-500.0,0.00038099,14]
[341400559,1730863857144,-413.68624748,0.00038099,14]
[341400560,1730863857153,-500.0,0.00038099,14]
[341400561,1730863857163,-500.0,0.00038099,14]
[341400562,1730863857173,-500.0,0.00038099,14]
[341400563,1730863857183,-500.0,0.00038099,14]
[341400564,1730863857193,-500.0,0.00038099,14]
[341400565,1730863857204,-567.11842988,0.00038099,14]
[341400566,1730863857213,-500.0,0.00038099,14]
[341400567,1730863857223,-500.0,0.00038099,14]
[341400568,1730863857233,-500.0,0.00038099,14]
[341400569,1730863857244,-500.0,0.00038099,14]
[341400570,1730863857257,-500.0,0.00038099,14]
[341400571,1730863857267,-384.91499939,0.00038099,14]
[341400572,1730863857279,-500.0,0.00038099,14]
[341400573,1730863857289,-500.0,0.00038099,14]
[341400574,1730863857298,-500.0,0.00038099,14]
[341400575,1730863857307,-500.0,0.00038099,14]
[341400576,1730863857316,-500.0,0.00038099,14]
[341400577,1730863857325,-500.0,0.00038099,14]
[341400578,1730863857334,-500.0,0.00038099,14]
[341400579,1730863857343,-581.82,0.00038099,14]
[341400580,1730863857352,-500.0,0.00038099,14]
[341400581,1730863857362,-500.0,0.00038099,14]
[341400582,1730863857371,-801.87,0.00038099,14]
[341400583,1730863857380,-500.0,0.00038099,14]
[341400584,1730863857390,-500.0,0.00038099,14]
[341400585,1730863857400,-500.0,0.00038099,14]
[341400586,1730863857410,-500.0,0.00038099,14]
[341400587,1730863857419,-500.0,0.00038099,14]
[341400588,1730863857428,-500.0,0.00038099,14]
[341400589,1730863857438,-500.0,0.00038099,14]
[341400590,1730863857447,-500.0,0.00038099,14]
[341400591,1730863857456,-500.0,0.00038099,14]
[341400592,1730863857465,-500.0,0.00038099,14]
[341400593,1730863857474,-500.0,0.00038099,14]
[341400594,1730863857483,-1025.43,0.00038099,2]
[341400595,1730863857492,-732.25,0.00038099,14]
[341400596,1730863857511,-500.0,0.00038099,14]
[341400597,1730863857520,-641.17,0.00038099,14]
[341400598,1730863857530,-572.57460373,0.00038099,14]
[341400599,1730863857539,-500.0,0.00038099,14]
[341400600,1730863857548,-1120.93,0.00038099,14]
[341400601,1730863857558,-1115.15,0.00038099,14]
[341400602,1730863857568,-500.0,0.00038099,14]
[341400603,1730863857578,-500.0,0.00038099,14]
[341400604,1730863857588,-500.0,0.00038099,14]
[341400605,1730863857598,-500.0,0.00038099,14]
[341400606,1730863857607,-587.2,0.00038099,14]
[341400607,1730863857616,-500.0,0.00038099,14]
[341400608,1730863857626,-500.0,0.00038099,14]
[341400609,1730863857635,-500.0,0.00038099,14]
[341400610,1730863857644,-500.0,0.00038099,14]
[341400611,1730863857653,-522.56,0.00038099,14]
[341400612,1730863857662,-500.0,0.00038099,14]
[341400613,1730863857671,-500.0,0.00038099,14]
[341400614,1730863857680,-741.16,0.00038099,14]
[341400615,1730863857691,-500.0,0.00038099,14]
[341400616,1730863857699,-500.0,0.00038099,14]
[341400617,1730863857708,-500.0,0.00038099,14]
[341400618,1730863857717,-500.0,0.00038099,14]
[341400619,1730863857726,-500.0,0.00038099,14]
[341400620,1730863857735,-645.83,0.00038099,14]
[341400621,1730863857745,-500.0,0.00038099,14]
[341400622,1730863857754,-169.74278846,0.00038099,14]
[341400623,1730863857763,-558.42,0.00038099,14]
[341400624,1730863857772,-500.0,0.00038099,14]
[341400625,1730863857782,-500.0,0.00038099,14]
[341400626,1730863857791,-500.0,0.00038099,14]
[341400627,1730863857800,-500.0,0.00038099,14]
[341400628,1730863857809,-500.0,0.00038099,14]
[341400629,1730863857818,-500.0,0.00038099,14]
[341400630,1730863857827,-1701.03,0.00038099,14]
[341400631,1730863857836,-500.0,0.00038099,14]
[341400632,1730863857845,-500.0,0.00038099,14]
[341400633,1730863857853,-500.0,0.00038099,14]
[341400634,1730863857862,-500.0,0.00038099,14]
[341400635,1730863857871,-500.0,0.00038099,14]
[341400636,1730863857880,-500.0,0.00038099,14]
[341400637,1730863857888,-500.0,0.00038099,14]
[341400638,1730863857897,-500.0,0.00038099,14]
[341400639,1730863857906,-500.0,0.00038099,14]
[341400640,1730863857915,-500.0,0.00038099,14]
[341400641,1730863857923,-500.0,0.00038099,14]
[341400642,1730863857933,-500.0,0.00038099,14]
[341400643,1730863857942,-500.0,0.00038099,14]
[341400644,1730863857951,-500.0,0.00038099,14]
[341400645,1730863857962,-500.0,0.00038099,14]
[341400646,1730863857971,-500.0,0.00038099,14]
[341400647,1730863857981,-500.0,0.00038099,14]
[341400648,1730863857990,-500.0,0.00038099,14]
[341400649,1730863858014,-1815.57,0.00038099,14]
[341400650,1730863858023,-500.0,0.00038099,14]
[341400651,1730863858032,-500.0,0.00038099,14]
[341400652,1730863858041,-500.0,0.00038099,14]
[341400653,1730863858050,-1458.65,0.00038099,14]
[341400654,1730863858060,-500.0,0.00038099,14]
[341400655,1730863858071,-540.73,0.00038099,14]
[341400656,1730863858080,-500.0,0.00038099,14]
[341400657,1730863858089,-1074.37,0.00038099,14]
[341400658,1730863858099,-1037.65,0.00038099,14]
[341400659,1730863858109,-848.02,0.00038099,14]
[341400660,1730863858121,-500.0,0.00038099,14]
[341400661,1730863858131,-500.0,0.00038099,14]
[341400662,1730863858140,-2916.25,0.00038099,14]
[341400663,1730863858151,-373.75987028,0.00038099,14]
[341400664,1730863858161,-739.32,0.00038099,14]
[341400665,1730863858170,-500.0,0.00038099,14]
[341400666,1730863858180,-500.0,0.00038099,14]
[341400667,1730863858189,-500.0,0.00038099,14]
[341400668,1730863858199,-500.0,0.00038099,14]
[341400669,1730863858209,-500.0,0.00038099,14]
[341400670,1730863858218,-500.0,0.00038099,14]
[341400671,1730863858227,-500.0,0.00038099,14]
[341400672,1730863858237,-597.05,0.00038099,14]
[341400673,1730863858246,-500.0,0.00038099,14]
[341400674,1730863858256,-500.0,0.00038099,14]
[341400675,1730863858265,-500.0,0.00038099,14]
[341400676,1730863858274,-500.0,0.00038099,14]
[341400677,1730863858283,-747.9,0.00038099,14]
[341400678,1730863858292,-500.0,0.00038099,14]
[341400679,1730863858302,-500.0,0.00038099,14]
[341400680,1730863858311,-500.0,0.00038099,14]
[341400681,1730863858320,-500.0,0.00038099,14]
[341400682,1730863858329,-500.0,0.00038099,7]
[341400683,1730863858338,-500.0,0.00038099,14]
[341400684,1730863858347,-3402.3,0.00038099,14]
[341400685,1730863858356,-500.0,0.00038099,14]
[341400686,1730863858366,-500.0,0.00038099,14]
[341400687,1730863858375,-819.48,0.00038099,14]
[341400688,1730863858384,-500.0,0.00038099,14]
[341400689,1730863858393,-500.0,0.00038099,14]
[341400690,1730863858402,-500.0,0.00038099,14]
[341400691,1730863858412,-500.0,0.00038099,14]
[341400692,1730863858421,-500.0,0.00038099,14]
[341400693,1730863858431,-500.0,0.00038099,14]
[341400694,1730863858440,-500.0,0.00038099,14]
[341400695,1730863858449,-500.0,0.00038099,14]
[341400696,1730863858459,-500.0,0.00038099,14]
[341400697,1730863858468,-500.0,0.00038099,14]
[341400698,1730863858477,-500.0,0.00038099,14]
[341400699,1730863858487,-500.0,0.00038099,14]
[341400700,1730863858496,-500.0,0.00038099,14]
[341400701,1730863858523,-619.14,0.00038099,14]
[341400702,1730863858532,-551.39,0.00038099,14]
[341400703,1730863858541,-567.56,0.00038099,14]
[341400704,1730863858551,-515.19408228,0.00038099,14]
[341400705,1730863858560,-500.0,0.00038099,14]
[341400706,1730863858569,-500.0,0.00038099,14]
[341400707,1730863858578,-500.0,0.00038099,14]
[341400708,1730863858588,-500.0,0.00038099,14]
[341400709,1730863858599,-500.0,0.00038099,14]
[341400710,1730863858608,-500.0,0.00038099,14]
[341400711,1730863858618,-500.0,0.00038099,14]
[341400712,1730863858627,-545.41,0.00038099,14]
[341400713,1730863858636,-500.0,0.00038099,14]
[341400714,1730863858646,-500.0,0.00038099,14]
[341400715,1730863858655,-500.0,0.00038099,14]
[341400716,1730863858664,-500.0,0.00038099,14]
[341400717,1730863858674,-602.25,0.00038099,14]
[341400718,1730863858683,-500.0,0.00038099,14]
[341400719,1730863858693,-624.71,0.00038099,14]
[341400720,1730863858702,-500.0,0.00038099,14]
[341400721,1730863858711,-500.0,0.00038099,14]
[341400722,1730863858720,-554.26701032,0.00038099,14]
[341400723,1730863858730,-500.0,0.00038099,14]
[341400724,1730863858739,-500.0,0.00038099,14]
[341400725,1730863858749,-500.0,0.00038099,14]
[341400726,1730863858758,-500.0,0.00038099,14]
[341400727,1730863858768,-500.0,0.00038099,14]
[341400728,1730863858777,-500.0,0.00038099,14]
[341400729,1730863858786,-1147.61,0.00038099,14]
[341400730,1730863858795,-500.0,0.00038099,14]
[341400731,1730863858804,-500.0,0.00038099,14]
[341400732,1730863858813,-500.0,0.00038099,14]
[341400733,1730863858823,-1337.9,0.00038099,14]
[341400734,1730863858832,-500.0,0.00038099,14]
[341400735,1730863858841,-536.35,0.00038099,14]
[341400736,1730863858850,-500.0,0.00038099,14]
[341400737,1730863858859,-500.0,0.00038099,14]
[341400738,1730863858868,-500.0,0.00038099,14]
[341400739,1730863858878,-500.0,0.00038099,14]
[341400740,1730863858887,-1044.98,0.00038099,14]
[341400741,1730863858897,-546.55,0.00038099,14]
[341400742,1730863858907,-500.0,0.00038099,14]
[341400743,1730863858916,-500.0,0.00038099,14]
[341400744,1730863858925,-500.0,0.00038099,14]
[341400745,1730863858934,-500.0,0.00038099,14]
[341400746,1730863858943,-500.0,0.00038099,14]
[341400747,1730863858952,-500.0,0.00038099,14]
[341400748,1730863858961,-1530.56,0.00038099,14]
[341400749,1730863858970,-500.0,0.00038099,14]
[341400750,1730863858979,-500.0,0.00038099,14]
[341400751,1730863858988,-87718.5648606,0.000381,2]
[341400752,1730863859003,-168.77,0.00038161,2]
[341400753,1730863859024,-1000.0,0.0003818,14]
[341400754,1730863859033,-635.93,0.0003818,14]
[341400755,1730863859043,-500.0,0.0003818,14]
[341400756,1730863859052,-1114.58,0.00038181,14]
[341400757,1730863859062,-270.2593318,0.00038181,14]
[341400758,1730863859071,-500.0,0.00038181,14]
[341400759,1730863859080,-2666.71,0.00038181,14]
[341400760,1730863859089,-953.24,0.00038181,14]
[341400761,1730863859098,-553.83,0.00038181,14]
[341400762,1730863859107,-988.52,0.00038181,14]
[341400763,1730863859118,-517.02,0.00038181,14]
[341400764,1730863859128,-1985.92,0.00038181,14]
[341400765,1730863859139,-5240.78,0.00038181,14]
[341400766,1730863859148,-739.76,0.00038181,14]
[341400767,1730863859157,-1271.04,0.00038181,14]
[341400768,1730863859167,-1309.38,0.00038181,14]
[341400769,1730863859176,-2385.3,0.00038181,14]
[341400770,1730863859185,-500.0,0.00038181,7]
[341400771,1730863859196,-566.71,0.00038181,14]
[341400772,1730863859206,-1101.53,0.00038181,14]
[341400773,1730863859215,-535.13,0.00038181,14]
[341400774,1730863859224,-590.93,0.00038181,14]
[341400775,1730863859233,-708.75,0.00038181,14]
[341400776,1730863859242,-724.44,0.00038181,14]
[341400777,1730863859251,-3588.59,0.00038181,14]
[341400778,1730863859260,-2774.2,0.00038181,14]
[341400779,1730863859269,-3770.72,0.00038181,14]
[341400780,1730863859278,-1312.72,0.00038181,14]
[341400781,1730863859288,-500.0,0.00038181,14]
[341400782,1730863859298,-517.29,0.00038181,14]
[341400783,1730863859307,-500.0,0.00038181,14]
[341400784,1730863859316,-500.0,0.00038181,14]
[341400785,1730863859326,-639.54,0.00038181,14]
[341400786,1730863859335,-500.0,0.00038181,14]
[341400787,1730863859344,-500.0,0.00038181,14]
[341400788,1730863859353,-500.0,0.00038181,14]
[341400789,1730863859362,-500.0,0.00038181,14]
[341400790,1730863859371,-500.0,0.00038181,14]
[341400791,1730863859380,-500.0,0.00038181,14]
[341400792,1730863859390,-322.4105926,0.00038182,14]
[341400793,1730863860074,-933.00417724,0.00038182,14]
[341400794,1730863860086,-2584.045,0.00038182,14]
[341400795,1730863860174,-4.82658143,0.00038099,14]
[341400796,1730863860187,-495.17341857,0.00038099,14]
[341400797,1730863860197,-3311.86023016,0.00038182,14]
[341400798,1730863860207,-452.57705183,0.00038182,14]
[341400799,1730863860218,-641.41377544,0.00038182,14]
[341400800,1730863860230,-3340.98917273,0.00038182,14]
[341400801,1730863860240,-3741.35838125,0.00038182,2]
[341400802,1730863860265,-1079.31161875,0.00038182,2]
[341400803,1730863860274,-218.78190125,0.00038182,14]
[341400804,1730863860312,-378.28302209,0.0002995,5]
[341400805,1730863860342,-124.22008668,0.0002995,5]
[341400806,1730863860352,-500.0,0.0002995,5]
[341400807,1730863860362,-500.0,0.00037808,14]
[341400808,1730863860371,-32.43582933,0.00037899,14]
[341400809,1730863860383,-467.56417067,0.00037899,14]
[341400810,1730863860392,-15.43114189,0.00038182,14]
[341400811,1730863860415,-500.0,0.00037999,14]
[341400812,1730863860425,-265.78695686,0.00038182,14]
[341400813,1730863860434,-500.0,0.00038182,14]
[341400814,1730863860443,-500.0,0.00038182,14]
[341400815,1730863860453,-500.0,0.00038182,14]
[341400816,1730863860463,-730.14,0.00038182,14]
[341400817,1730863860472,-1144.65684356,0.00038182,14]
[341400818,1730863860483,-1409.86315644,0.00038182,14]
[341400819,1730863860493,-500.0,0.00038182,14]
[341400820,1730863860514,-597.57538349,0.00038182,14]
[341400821,1730863860524,-2983.19,0.00038182,14]
[341400822,1730863860534,-2550.32,0.00038182,14]
[341400823,1730863860543,-500.0,0.00038182,14]
[341400824,1730863860553,-7866.76,0.00038182,14]
[341400825,1730863860562,-856.44,0.00038182,14]
[341400826,1730863860571,-500.0,0.00038182,14]
[341400827,1730863860581,-562.9,0.00038182,14]
[341400828,1730863860590,-500.0,0.00038182,14]
[341400829,1730863860600,-823.06,0.00038182,14]
[341400830,1730863860609,-1246.94,0.00038182,14]
[341400831,1730863860618,-374.47942594,0.00038182,14]
[341400832,1730863860630,-1145.07057406,0.00038182,14]
[341400833,1730863860639,-1281.02,0.00038182,14]
[341400834,1730863860649,-652.86,0.00038192,120]
[341400835,1730863860658,-957.59,0.00038196,14]
[341400836,1730863860667,-500.0,0.00038196,14]
[341400837,1730863860677,-1000.0,0.00038196,14]
[341400838,1730863860687,-1476.18,0.00038196,14]
[341400839,1730863860696,-635.93,0.00038196,14]
[341400840,1730863860707,-500.0,0.00038196,14]
[341400841,1730863860716,-500.0,0.00038196,14]
[341400842,1730863860726,-307.305904,0.00038197,120]
[341400843,1730863860735,-500.0,0.00038197,14]
[341400844,1730863860744,-500.0,0.00038197,14]
[341400845,1730863860765,-500.0,0.00038197,14]
[341400846,1730863860774,-1377.65,0.00038197,14]
[341400847,1730863860783,-500.0,0.00038197,14]
[341400848,1730863860792,-500.0,0.00038197,14]
[341400849,1730863860801,-534.47,0.00038197,14]
[341400850,1730863860810,-500.0,0.00038197,14]
[341400851,1730863860819,-500.0,0.00038197,14]
[341400852,1730863860828,-500.0,0.00038197,14]
[341400853,1730863860838,-799.7,0.00038197,14]
[341400854,1730863860847,-500.0,0.00038197,14]
[341400855,1730863860856,-500.0,0.00038197,14]
[341400856,1730863860865,-500.0,0.00038197,14]
[341400857,1730863860875,-500.0,0.00038197,14]
[341400858,1730863860883,-500.0,0.00038197,14]
[341400859,1730863860893,-500.0,0.00038197,14]
[341400860,1730863860902,-500.0,0.00038197,14]
[341400861,1730863860911,-500.0,0.00038197,14]
[341400862,1730863860922,-500.0,0.00038197,14]
[341400863,1730863860931,-543.3,0.00038197,14]
[341400864,1730863860940,-500.0,0.00038197,14]
[341400865,1730863860949,-500.0,0.00038197,14]
[341400866,1730863860959,-500.0,0.00038197,14]
[341400867,1730863860968,-500.0,0.00038197,14]
[341400868,1730863860977,-521.82,0.00038197,14]
[341400869,1730863860986,-500.0,0.00038197,14]
[341400870,1730863860996,-500.0,0.00038197,14]
[341400871,1730863861019,-500.0,0.00038197,14]
[341400872,1730863861029,-417.98786034,0.00038197,14]
[341400873,1730863861039,-505.55582506,0.00038197,14]
[341400874,1730863861049,-954.72,0.00038197,14]
[341400875,1730863861058,-632.32856028,0.00038197,14]
[341400876,1730863861067,-500.0,0.00038197,14]
[341400877,1730863861076,-500.0,0.00038197,14]
[341400878,1730863861086,-500.0,0.00038197,14]
[341400879,1730863861095,-500.0,0.00038197,14]
[341400880,1730863861105,-500.0,0.00038197,14]
[341400881,1730863861115,-500.0,0.00038197,14]
[341400882,1730863861132,-241.97331039,0.00038197,14]
[341400883,1730863861479,-1334.99886768,0.00019625,2]
[341400884,1730863861490,-200.94,0.00027934,2]
[341400885,1730863861502,-297.91,0.0003,2]
[341400886,1730863861512,-297.91,0.0003,2]
[341400887,1730863861522,-297.91,0.0003,2]
[341400888,1730863861531,-297.91,0.0003,2]
[341400889,1730863861541,-297.91,0.0003,2]